bitfinex-derivatives/quotes_BTCF0:USTF0_20240907
["timestamp","ask_amount","ask_price","bid_price","bid_amount"]
[1725717891412,0.10972338,54643.0,54641.0,0.19]
[1725717891612,0.10972338,54643.0,54642.0,0.091509]
[1725717891810,0.091499,54648.0,54647.0,0.0915]
[1725717892116,0.25485262,54648.0,54647.0,0.0915]
[1725717892306,0.25484062,54648.0,54647.0,0.0915]
[1725717892715,0.12684261,54648.0,54647.0,0.0915]
[1725717892913,0.25484062,54648.0,54647.0,0.0915]
[1725717893110,0.12684261,54648.0,54647.0,0.0915]
[1725717893315,0.091499,54648.0,54647.0,0.0975]
[1725717894305,0.091499,54648.0,54647.0,0.1035]
[1725717895521,0.0914086,54650.0,54649.0,0.091497]
[1725717895814,0.091495,54650.0,54649.0,0.091497]
[1725717896817,0.091495,54650.0,54649.0,0.099497]
[1725717904820,0.21639513,54653.0,54651.0,0.091493]
[1725717905623,0.091492,54652.0,54651.0,0.091493]
[1725717905815,0.0914086,54653.0,54652.0,0.091492]
[1725717906015,0.0914086,54658.0,54657.0,0.091484]
[1725717906326,0.1828896,54659.0,54658.0,0.091482]
[1725717907923,0.1858896,54659.0,54658.0,0.092482]
[1725717908422,0.32091572,54659.0,54658.0,0.092482]
[1725717908821,0.32591572,54659.0,54658.0,0.093482]
[1725717909827,0.23443472,54659.0,54658.0,0.093482]
[1725717910027,0.23443433,54659.0,54658.0,0.093482]
[1725717913027,0.08813612,54659.0,54658.0,0.093482]
[1725717914129,0.0492,54665.0,54658.0,0.093482]
[1725717914130,0.1278881,54664.0,54658.0,1.432362]
[1725717914323,0.1278881,54670.0,54666.0,0.091469]
[1725717914523,0.11978851,54671.0,54670.0,0.182924]
[1725717914829,0.19,54673.0,54672.0,0.091459]
[1725717915342,0.19,54676.0,54674.0,0.091454]
[1725717915633,0.29948809,54676.0,54674.0,0.091454]
[1725717916020,0.091459,54672.0,54661.0,0.05486731]
[1725717916225,0.19,54668.0,54658.0,0.001]
[1725717916427,0.19,54668.0,54667.0,0.091467]
[1725717916631,0.3727033,54668.0,54666.0,0.001]
[1725717916819,0.090467,54667.0,54666.0,0.001]
[1725717917134,0.090467,54667.0,54662.0,0.091475]
[1725717917451,0.091469,54666.0,54662.0,0.091475]
[1725717918022,0.091469,54666.0,54658.0,0.091481]
[1725717918330,0.281471,54665.0,54660.0,0.091478]
[1725717919023,0.091473,54664.0,54660.0,0.091478]
[1725717919332,0.091473,54664.0,54650.0,0.05486731]
[1725717919333,0.091486,54656.0,54650.0,0.091494]
[1725717919631,0.281486,54656.0,54650.0,0.091494]
[1725717919835,0.091488,54655.0,54650.0,0.091494]
[1725717920131,0.186,54651.0,54646.0,0.097]
[1725717920331,0.091492,54652.0,54648.0,0.091498]
[1725717920826,0.091492,54652.0,54650.0,0.007]
[1725717921224,0.091492,54652.0,54650.0,0.006]
[1725717921225,0.18267047,54652.0,54650.0,0.006]
[1725717921933,0.18267047,54652.0,54650.0,0.009]
[1725717922229,0.091492,54652.0,54650.0,0.009]
[1725717922930,0.09117847,54654.0,54650.0,0.003]
[1725717923119,0.09117847,54654.0,54650.0,0.096495]
[1725717923322,0.09117847,54655.0,54650.0,0.096495]
[1725717923518,0.19110082,54654.0,54650.0,0.096495]
[1725717923716,0.04480261,54653.0,54650.0,0.096495]
[1725717923922,0.04480261,54653.0,54651.0,0.091494]
[1725717924621,0.14629821,54654.0,54651.0,0.091494]
[1725717924622,0.08014321,54652.0,54651.0,0.091494]
[1725717924825,0.0353406,54652.0,54651.0,0.091494]
[1725717925330,0.0353406,54652.0,54651.0,0.092494]
[1725717925636,0.0353406,54652.0,54651.0,1.431414]
[1725717926334,0.14629821,54659.0,54658.0,0.091482]
[1725717926533,0.08013356,54659.0,54658.0,0.091482]
[1725717927526,0.08113356,54659.0,54658.0,0.091482]
[1725717928223,0.08113356,54659.0,54658.0,0.092482]
[1725717928427,0.08013356,54659.0,54658.0,0.093482]
[1725717930240,0.08013356,54659.0,54658.0,0.094482]
[1725717930430,0.091475,54662.0,54658.0,0.094482]
[1725717930736,0.18268416,54662.0,54658.0,0.094482]
[1725717930925,0.091477,54661.0,54658.0,0.092482]
[1725717931124,0.091477,54661.0,54658.0,0.093482]
[1725717931538,0.091477,54661.0,54659.0,0.09148]
[1725717934040,0.18268616,54661.0,54659.0,0.09148]
[1725717935334,0.18268616,54661.0,54660.0,0.091479]
[1725717936534,0.18368616,54661.0,54660.0,0.091479]
[1725717937338,0.002,54661.0,54660.0,0.091479]
[1725717938337,0.093477,54661.0,54660.0,0.091479]
[1725717938536,0.25650472,54661.0,54660.0,0.091479]
[1725717939139,0.25639216,54661.0,54660.0,0.091479]
[1725717939328,0.12869933,54661.0,54660.0,0.091479]
[1725717939524,0.22113733,54661.0,54660.0,0.091479]
[1725717939731,0.12869933,54661.0,54660.0,0.091479]
[1725717943239,0.22113972,54661.0,54660.0,0.091479]
[1725717943443,0.25647585,54661.0,54660.0,0.091479]
[1725717943839,0.35499885,54661.0,54649.0,0.093]
[1725717944043,0.091496,54650.0,54642.0,0.2382]
[1725717944343,0.1095375,54647.0,54646.0,0.091502]
[1725717944544,0.091496,54650.0,54648.0,0.091499]
[1725717944545,0.1095375,54649.0,54648.0,0.091499]
[1725717945643,0.091496,54650.0,54649.0,0.102497]
[1725717946137,0.092,54653.0,54649.0,0.102497]
[1725717946138,0.092,54653.0,54650.0,0.091494]
[1725717946335,0.137491,54653.0,54650.0,0.281494]
[1725717946937,0.091494,54651.0,54650.0,0.281494]
[1725717947648,0.091494,54651.0,54650.0,0.292494]
[1725717949248,0.091494,54651.0,54650.0,0.302494]
[1725717950040,0.092494,54651.0,54650.0,0.302494]
[1725717950240,0.001,54651.0,54650.0,0.302494]
[1725717950443,0.001,54651.0,54650.0,0.35736131]
[1725717952246,0.001,54651.0,54650.0,0.302494]
[1725717953445,0.001,54651.0,54650.0,0.33573984]
[1725717955045,0.001,54651.0,54650.0,1.55766875]
[1725717955255,0.001,54651.0,54650.0,1.48469984]
[1725717955939,0.001,54651.0,54650.0,1.57619484]
[1725717956457,0.001,54651.0,54650.0,0.021]
[1725717956745,0.31783704,54651.0,54650.0,0.021]
[1725717956948,0.282494,54651.0,54650.0,0.021]
[1725717957244,0.20218229,54651.0,54650.0,0.021]
[1725717958242,0.092494,54651.0,54650.0,0.01]
[1725717958441,0.12510533,54651.0,54650.0,0.019]
[1725717958740,0.23479362,54651.0,54650.0,0.019]
[1725717959140,0.001,54651.0,54650.0,0.110495]
[1725717959542,0.20588829,54653.0,54652.0,0.091492]
[1725717959939,0.0962,54653.0,54652.0,0.091492]
[1725717960537,0.08523928,54653.0,54652.0,0.091492]
[1725717960946,0.17672928,54653.0,54652.0,0.091492]
[1725717961248,0.17672928,54653.0,54649.0,0.091496]
[1725717961249,0.13004591,54653.0,54649.0,0.091496]
[1725717961455,0.12793099,54651.0,54649.0,0.091496]
[1725717961659,0.03534179,54650.0,54649.0,0.091496]
[1725717961950,0.16327278,54650.0,54649.0,0.091496]
[1725717963041,0.25476778,54650.0,54649.0,0.094496]
[1725717963254,0.25476778,54650.0,54649.0,0.097496]
[1725717964142,0.12683679,54650.0,54649.0,0.097496]
[1725717966342,0.12683679,54650.0,54649.0,0.095496]
[1725717966543,0.12683679,54650.0,54649.0,0.094496]
[1725717967447,0.12683679,54650.0,54649.0,0.093496]
[1725717968556,0.091495,54650.0,54649.0,0.093496]
[1725717971460,0.14123112,54653.0,54652.0,0.091492]
[1725717971645,0.14139,54653.0,54652.0,0.091492]
[1725717972856,0.14539,54653.0,54652.0,0.091492]
[1725717974967,0.0539,54653.0,54652.0,0.091492]
[1725717975152,0.004,54653.0,54652.0,0.091492]
[1725717975347,0.004,54653.0,54652.0,0.14623081]
[1725717975860,0.11159735,54653.0,54652.0,0.091492]
[1725717976158,0.002,54653.0,54652.0,0.091492]
[1725717976559,0.001,54653.0,54652.0,0.092492]
[1725717976964,0.091505,54644.0,54635.0,0.05473881]
[1725717977261,0.091505,54644.0,54633.0,0.0729612]
[1725717977262,0.09036238,54639.0,54638.0,0.091515]
[1725717978358,0.10962941,54642.0,54640.0,0.091511]
[1725717978565,0.10962941,54641.0,54640.0,0.091511]
[1725717979149,0.10962941,54641.0,54637.0,0.091517]
[1725717979357,0.20114141,54641.0,54637.0,0.091517]
[1725717979663,0.20114141,54641.0,54640.0,0.006]
[1725717979860,0.20114141,54641.0,54640.0,0.011]
[1725717980060,0.20114141,54641.0,54640.0,0.005]
[1725717980258,0.20114141,54641.0,54640.0,0.011]
[1725717980766,0.20214141,54641.0,54640.0,0.006]
[1725717981959,0.20212731,54641.0,54640.0,0.006]
[1725717982173,0.12785753,54641.0,54640.0,0.006]
[1725717982356,0.12685753,54641.0,54640.0,0.011]
[1725717982761,0.091512,54641.0,54640.0,0.011]
[1725717983469,0.091512,54641.0,54640.0,0.007]
[1725717983657,0.091512,54641.0,54640.0,0.001]
[1725717983965,0.091512,54641.0,54640.0,0.002]
[1725717987669,0.183024,54641.0,54640.0,0.002]
[1725717989056,0.098512,54641.0,54640.0,0.002]
[1725717989366,0.190022,54641.0,54640.0,0.002]
[1725717989559,0.190022,54641.0,54640.0,0.001]
[1725717989864,0.10251,54641.0,54640.0,0.092512]
[1725717990165,0.10051,54641.0,54640.0,0.091512]
[1725717990356,0.10051,54641.0,54640.0,0.092512]
[1725717990666,0.10051,54641.0,54640.0,0.001]
[1725717991965,0.10251,54641.0,54640.0,0.002]
[1725717992366,0.09851,54641.0,54640.0,0.001]
[1725717992567,0.10251,54641.0,54640.0,0.001]
[1725717992757,0.091514,54639.0,54638.0,0.091515]
[1725717993868,0.091519,54636.0,54635.0,0.05473881]
[1725717994070,0.091517,54637.0,54634.0,0.05473881]
[1725717994569,0.19,54635.0,54634.0,0.05473881]
[1725717994957,0.281521,54635.0,54634.0,0.05473881]
[1725717995765,0.281521,54635.0,54634.0,0.002]
[1725717996260,0.281521,54635.0,54634.0,0.004]
[1725717998366,0.31383026,54635.0,54634.0,0.004]
[1725717998963,0.40535126,54635.0,54634.0,0.004]
[1725717999277,0.51496524,54635.0,54634.0,0.004]
[1725717999574,0.40535126,54635.0,54634.0,0.004]
[1725718000368,0.31383026,54635.0,54634.0,0.002]
[1725718000662,1.66801587,54635.0,54634.0,0.002]
[1725718000867,0.51889587,54635.0,54634.0,0.002]
[1725718002764,0.091523,54634.0,54622.0,0.091542]
[1725718002965,0.19,54623.0,54620.0,0.091543]
[1725718003177,0.091546,54621.0,54620.0,0.091543]
[1725718004171,0.091546,54621.0,54620.0,0.007]
[1725718004570,0.087546,54621.0,54620.0,0.007]
[1725718005677,0.087546,54621.0,54620.0,0.01]
[1725718005973,0.087546,54621.0,54620.0,0.003]
[1725718006268,0.087546,54621.0,54620.0,0.007]
[1725718008278,0.087546,54621.0,54620.0,0.15328481]
[1725718008773,0.087546,54621.0,54620.0,0.15327092]
[1725718008968,0.12046961,54621.0,54620.0,0.098546]
[1725718010374,0.087546,54621.0,54620.0,0.098546]
[1725718011573,0.087546,54621.0,54620.0,0.15327092]
[1725718012277,0.087546,54621.0,54620.0,0.098546]
[1725718021476,0.091514,54639.0,54623.0,0.091541]
[1725718021679,0.32746001,54644.0,54629.0,0.05472256]
[1725718021873,0.32746001,54644.0,54631.0,0.05472256]
[1725718021874,0.091512,54640.0,54631.0,0.05472256]
[1725718022074,0.091512,54640.0,54638.0,0.091515]
[1725718022465,0.19,54643.0,54638.0,0.091515]
[1725718022466,0.091514,54639.0,54638.0,0.091515]
[1725718023081,0.19,54639.0,54634.0,0.091521]
[1725718023383,0.091528,54631.0,54630.0,0.05472256]
[1725718023581,0.091528,54631.0,54629.0,0.09153]
[1725718023879,0.090528,54631.0,54629.0,0.09153]
[1725718024278,0.090528,54631.0,54630.0,0.091529]
[1725718024787,0.089528,54631.0,54630.0,0.091529]
[1725718025379,0.095528,54631.0,54630.0,0.092529]
[1725718025677,0.102528,54631.0,54630.0,0.093529]
[1725718026071,0.101528,54631.0,54630.0,0.092529]
[1725718027377,0.101528,54631.0,54630.0,0.14725156]
[1725718027780,0.1368814,54631.0,54630.0,0.092529]
[1725718028374,0.1368814,54631.0,54630.0,0.001]
[1725718029081,0.101528,54631.0,54630.0,0.001]
[1725718029384,0.22945899,54631.0,54630.0,0.001]
[1725718029689,0.26481239,54631.0,54630.0,0.001]
[1725718030006,0.29811072,54631.0,54630.0,0.001]
[1725718032892,0.17528439,54631.0,54630.0,0.001]
[1725718033186,0.0473534,54631.0,54630.0,0.092529]
[1725718033389,0.012,54631.0,54630.0,0.092529]
[1725718033581,0.12160411,54631.0,54630.0,0.092529]
[1725718034588,0.012,54631.0,54630.0,0.733218]
[1725718034794,0.012,54631.0,54630.0,1.241689]
[1725718035493,0.012,54631.0,54630.0,1.333218]
[1725718035787,0.012,54631.0,54630.0,1.40618142]
[1725718036895,0.012,54631.0,54630.0,1.333218]
[1725718038184,0.012,54631.0,54630.0,1.40615214]
[1725718039287,0.012,54631.0,54630.0,1.333218]
[1725718040688,0.012,54631.0,54630.0,0.78790595]
[1725718041089,0.012,54631.0,54630.0,1.241689]
[1725718041292,0.012,54631.0,54630.0,0.092529]
[1725718041487,0.012,54631.0,54630.0,0.14722062]
[1725718041993,0.202,54631.0,54630.0,0.14722062]
[1725718042296,0.202,54631.0,54630.0,0.092529]
[1725718045690,0.012,54631.0,54630.0,0.092529]
[1725718049901,0.012,54631.0,54630.0,0.12599048]
[1725718055006,0.007,54631.0,54630.0,0.13499048]
[1725718055804,0.001,54631.0,54630.0,0.13499048]
[1725718056004,0.002,54631.0,54630.0,0.14299048]
[1725718056607,0.002,54631.0,54630.0,0.14599048]
[1725718057092,0.002,54631.0,54630.0,0.14299048]
[1725718057496,0.002,54631.0,54630.0,0.14399048]
[1725718058402,0.001,54631.0,54630.0,0.13299048]
[1725718058705,0.002,54631.0,54630.0,0.13899048]
[1725718059111,0.002,54631.0,54630.0,0.23351948]
[1725718059604,0.001,54631.0,54630.0,0.13099048]
[1725718059797,0.002,54631.0,54630.0,0.13899048]
[1725718060215,0.002,54631.0,54630.0,0.23051948]
[1725718061103,0.002,54631.0,54630.0,0.13899048]
[1725718061402,0.002,54631.0,54630.0,0.23051948]
[1725718061614,0.002,54631.0,54630.0,0.36996723]
[1725718062196,0.002,54631.0,54630.0,0.47993014]
[1725718063109,0.002,54631.0,54630.0,0.36996723]
[1725718065803,0.002,54631.0,54630.0,0.28531599]
[1725718066313,0.002,54631.0,54630.0,0.23051948]
[1725718067607,0.002,54631.0,54630.0,0.13899048]
[1725718069316,0.002,54631.0,54630.0,0.23051948]
[1725718070408,0.002,54631.0,54630.0,1.43447599]
[1725718070605,0.002,54631.0,54630.0,0.83447599]
[1725718071711,0.002,54631.0,54630.0,0.77967948]
[1725718071912,0.002,54631.0,54630.0,0.87967948]
[1725718072916,0.0926,54643.0,54642.0,0.091509]
[1725718074421,0.1066,54643.0,54642.0,0.093509]
[1725718077617,0.19801113,54643.0,54642.0,0.093509]
[1725718078008,0.1066,54643.0,54642.0,0.093509]
[1725718078217,0.19801113,54643.0,54642.0,0.093509]
[1725718078414,0.1066,54643.0,54642.0,0.093509]
[1725718078813,0.0606,54643.0,54642.0,0.093509]
[1725718079124,0.014,54643.0,54642.0,0.52545957]
[1725718079311,0.0989,54651.0,54650.0,0.091495]
[1725718079514,0.0989,54651.0,54650.0,0.281495]
[1725718080313,0.0493,54651.0,54650.0,0.281495]
[1725718080614,0.0493,54651.0,54650.0,0.35642294]
[1725718080615,0.0693,54651.0,54650.0,0.35642294]
[1725718080816,0.0693,54651.0,54650.0,0.33819352]
[1725718081022,0.0693,54651.0,54650.0,0.37128923]
[1725718081409,0.0693,54651.0,54650.0,0.31659071]
[1725718083621,0.02,54651.0,54650.0,0.31659071]
[1725718083818,0.1407,54667.0,54650.0,1.5134445]
[1725718084027,0.0484,54667.0,54666.0,0.281469]
[1725718084233,0.18371113,54675.0,54666.0,0.19]
[1725718084521,0.0923,54675.0,54674.0,0.091455]
[1725718084710,0.3265,54681.0,54679.0,0.091445]
[1725718084918,0.03348782,54682.0,54679.0,0.091445]
[1725718085116,0.2821,54684.0,54679.0,0.091445]
[1725718085117,0.46495013,54684.0,54679.0,0.091445]
[1725718085423,0.19,54681.0,54679.0,0.091445]
[1725718085925,0.19,54681.0,54672.0,0.03326376]
[1725718086127,0.19,54681.0,54675.0,0.091452]
[1725718086526,0.19,54681.0,54676.0,0.091452]
[1725718087031,0.19,54681.0,54677.0,0.09145]
[1725718087820,0.10960411,54678.0,54677.0,0.09145]
[1725718088429,0.19,54681.0,54677.0,0.09145]
[1725718088430,0.10960411,54679.0,54677.0,0.09145]
[1725718088629,0.0492,54678.0,54677.0,0.09145]
[1725718089431,0.09145,54677.0,54676.0,0.002]
[1725718089726,0.091458,54673.0,54662.0,0.33546813]
[1725718089927,0.54868,54677.0,54662.0,0.33546813]
[1725718089928,0.28079563,54666.0,54662.0,0.33546813]
[1725718090227,0.28079563,54666.0,54658.0,0.091482]
[1725718090228,0.08879563,54664.0,54658.0,0.091482]
[1725718090429,0.0492,54665.0,54658.0,0.091482]
[1725718090640,0.19,54662.0,54658.0,0.091482]
[1725718090825,0.189,54662.0,54658.0,0.091482]
[1725718091525,0.15815475,54665.0,54658.0,0.093482]
[1725718091829,0.091478,54661.0,54658.0,0.093482]
[1725718092033,0.0988,54660.0,54658.0,0.096482]
[1725718092227,0.0988,54660.0,54659.0,0.09148]
[1725718093435,0.049,54660.0,54659.0,0.09148]
[1725718094219,0.14067,54665.0,54659.0,0.09148]
[1725718094425,0.14067,54665.0,54660.0,0.091478]
[1725718095734,0.14067,54665.0,54661.0,0.091476]
[1725718096631,0.14067,54665.0,54662.0,0.091475]
[1725718098826,0.091472,54664.0,54662.0,0.091475]
[1725718099934,0.091472,54664.0,54663.0,0.091474]
[1725718100325,0.0456,54667.0,54666.0,0.091469]
[1725718104335,0.15455475,54667.0,54666.0,0.091469]
[1725718105240,0.0456,54667.0,54666.0,0.091469]
[1725718106345,0.138366,54668.0,54667.0,0.091467]
[1725718106538,0.19,54672.0,54667.0,0.091467]
[1725718106539,0.03343451,54671.0,54667.0,0.091467]
[1725718106742,0.091465,54668.0,54667.0,0.091467]
[1725718107043,0.12679292,54668.0,54667.0,0.091467]
[1725718107449,0.21939599,54668.0,54667.0,0.092467]
[1725718107649,0.25472391,54668.0,54667.0,0.092467]
[1725718107946,0.25472391,54668.0,54667.0,0.093467]
[1725718108350,0.17158349,54668.0,54667.0,0.093467]
[1725718110948,0.091465,54668.0,54667.0,0.093467]
[1725718112241,0.091465,54668.0,54667.0,0.002]
[1725718113847,0.18293,54668.0,54667.0,0.002]
[1725718114348,0.29237952,54668.0,54667.0,0.002]
[1725718114541,0.18293,54668.0,54667.0,0.002]
[1725718114952,0.29237952,54668.0,54667.0,0.002]
[1725718115748,0.20091452,54668.0,54667.0,0.002]
[1725718116451,0.091465,54668.0,54667.0,0.002]
[1725718118050,1.74941563,54668.0,54667.0,0.002]
[1725718118248,0.091484,54657.0,54656.0,0.091485]
[1725718118447,0.17160499,54657.0,54656.0,0.091485]
[1725718118849,0.237651,54657.0,54656.0,0.091485]
[1725718119050,0.22628799,54657.0,54656.0,0.091485]
[1725718119251,0.091479,54660.0,54653.0,0.285]
[1725718119252,0.146167,54659.0,54653.0,0.285]
[1725718119444,0.12803663,54655.0,54654.0,0.091489]
[1725718119643,0.16336939,54655.0,54654.0,0.091489]
[1725718120065,0.15736939,54655.0,54654.0,0.091489]
[1725718120251,0.12203663,54656.0,54655.0,0.091487]
[1725718120452,0.08012474,54656.0,54655.0,0.091487]
[1725718120653,0.03033245,54656.0,54655.0,0.091487]
[1725718120856,0.03533247,54658.0,54653.0,0.31788373]
[1725718121057,0.08012459,54658.0,54653.0,0.31788373]
[1725718121353,0.08012459,54657.0,54656.0,0.091484]
[1725718121552,0.03533247,54657.0,54656.0,0.091484]
[1725718121753,0.08012459,54658.0,54655.0,0.002]
[1725718122057,0.08012539,54657.0,54656.0,0.091484]
[1725718122653,0.08012539,54657.0,54656.0,0.092484]
[1725718124245,0.08012539,54657.0,54656.0,0.093484]
[1725718125949,0.091476,54662.0,54658.0,0.091481]
[1725718125950,0.18292287,54662.0,54658.0,0.091481]
[1725718126151,0.18292387,54661.0,54659.0,0.14618167]
[1725718126349,0.091477,54661.0,54659.0,0.14618167]
[1725718126560,0.09145026,54660.0,54659.0,0.09148]
[1725718127057,0.18292926,54660.0,54659.0,0.09148]
[1725718127262,0.091479,54660.0,54659.0,0.09148]
[1725718127755,0.0492,54661.0,54660.0,0.091479]
[1725718127967,0.12584616,54662.0,54660.0,0.091479]
[1725718128151,0.2172815,54662.0,54660.0,0.091479]
[1725718128462,0.12584616,54662.0,54661.0,0.091477]
[1725718128854,0.091476,54662.0,54661.0,0.091477]
[1725718129050,0.19,54667.0,54661.0,0.091477]
[1725718129051,0.09143534,54664.0,54662.0,0.091475]
[1725718129262,0.18290834,54664.0,54662.0,0.091475]
[1725718129559,0.091473,54664.0,54662.0,0.14617667]
[1725718129753,0.091473,54664.0,54663.0,0.091474]
[1725718129956,0.15893624,54669.0,54662.0,0.6]
[1725718129957,0.09143534,54666.0,54662.0,0.6]
[1725718130160,0.03285782,54667.0,54666.0,0.091469]
[1725718130356,0.03285782,54667.0,54666.0,0.16431929]
[1725718130561,0.09143534,54674.0,54673.0,0.091457]
[1725718131263,0.09143534,54676.0,54675.0,0.091454]
[1725718131465,0.09143534,54677.0,54676.0,0.091452]
[1725718132454,0.09143534,54678.0,54676.0,0.091452]
[1725718132855,0.091448,54679.0,54676.0,0.091452]
[1725718132856,0.09143534,54677.0,54676.0,0.091452]
[1725718133054,0.091448,54679.0,54676.0,0.091452]
[1725718133355,0.1095348,54677.0,54676.0,0.092452]
[1725718133559,0.1145348,54677.0,54676.0,0.093452]
[1725718133757,0.005,54677.0,54676.0,0.093452]
[1725718134155,0.1095348,54678.0,54676.0,0.092452]
[1725718134459,0.1095348,54678.0,54676.0,0.093452]
[1725718134849,0.1095348,54678.0,54677.0,0.09145]
[1725718135247,0.2059828,54679.0,54677.0,0.09145]
[1725718135465,0.001,54678.0,54677.0,0.09145]
[1725718136147,0.001,54678.0,54677.0,0.09245]
[1725718136955,0.008,54678.0,54677.0,0.09345]
[1725718137266,0.008,54678.0,54677.0,1.52358]
[1725718138658,0.14203482,54692.0,54687.0,0.19]
[1725718138659,0.09121307,54690.0,54687.0,0.19]
[1725718138853,0.09121307,54690.0,54689.0,0.09143]
[1725718139054,0.09121307,54691.0,54690.0,0.091428]
[1725718139249,0.190324,54693.0,54690.0,0.091428]
[1725718139250,0.09121307,54693.0,54690.0,0.281428]
[1725718139455,0.05939936,54694.0,54693.0,0.091423]
[1725718140861,0.06639936,54694.0,54693.0,0.092423]
[1725718141053,0.14647358,54694.0,54693.0,0.092423]
[1725718141559,0.10170953,54694.0,54693.0,0.092423]
[1725718141761,0.06639936,54694.0,54693.0,0.001]
[1725718142353,0.14647445,54694.0,54693.0,0.001]
[1725718142658,0.23789645,54694.0,54693.0,0.002]
[1725718143054,0.14647445,54694.0,54693.0,0.002]
[1725718143253,0.14647445,54694.0,54693.0,1.241943]
[1725718143254,0.10170953,54694.0,54693.0,1.241943]
[1725718143468,0.18287276,54707.0,54704.0,0.091405]
[1725718143664,0.10902022,54709.0,54704.0,0.19]
[1725718143851,0.0986,54719.0,54708.0,0.19]
[1725718143852,0.10902022,54712.0,54708.0,0.19]
[1725718144160,0.2886,54719.0,54700.0,0.25410987]
[1725718144161,0.10902022,54710.0,54707.0,0.0914]
[1725718144464,0.0986,54719.0,54709.0,0.19]
[1725718144465,0.10902022,54711.0,54709.0,0.19]
[1725718144656,0.10902022,54713.0,54710.0,0.19]
[1725718145163,0.10902022,54713.0,54704.0,0.001]
[1725718145350,0.09072307,54719.0,54717.0,0.091383]
[1725718145554,0.09072307,54719.0,54718.0,0.19]
[1725718145768,0.091374,54723.0,54718.0,0.19]
[1725718145953,0.091374,54723.0,54722.0,0.19]
[1725718146159,0.091369,54726.0,54722.0,0.19]
[1725718146364,0.141172,54724.0,54707.0,0.00902285]
[1725718146675,0.0478,54730.0,54725.0,0.19]
[1725718146866,0.0478,54730.0,54722.0,0.19]
[1725718147163,0.091369,54726.0,54722.0,0.19]
[1725718147359,0.0904485,54723.0,54719.0,0.19]
[1725718147568,0.0498,54722.0,54719.0,0.19]
[1725718147953,0.141175,54722.0,54719.0,0.19]
[1725718148556,0.141175,54722.0,54719.0,0.191]
[1725718148961,0.0498,54722.0,54719.0,0.191]
[1725718149169,0.0478,54730.0,54721.0,0.091376]
[1725718149170,0.091367,54727.0,54721.0,0.091376]
[1725718149361,0.140867,54727.0,54723.0,0.19]
[1725718149668,0.0495,54727.0,54723.0,0.281373]
[1725718149969,0.0495,54727.0,54724.0,0.091371]
[1725718150666,0.0495,54727.0,54723.0,0.19]
[1725718150868,0.140867,54727.0,54723.0,0.19]
[1725718151464,0.091369,54726.0,54721.0,0.002]
[1725718151667,0.091375,54722.0,54721.0,0.002]
[1725718151866,0.091375,54722.0,54721.0,0.001]
[1725718152065,0.091377,54721.0,54716.0,0.19]
[1725718152260,0.091369,54726.0,54721.0,0.091376]
[1725718152667,0.0495,54727.0,54721.0,0.092376]
[1725718152668,0.09137,54725.0,54721.0,0.092376]
[1725718152857,0.19,54725.0,54721.0,0.001]
[1725718153059,0.19,54725.0,54721.0,0.002]
[1725718153273,0.091375,54722.0,54721.0,0.002]
[1725718153856,0.0495,54727.0,54721.0,0.093377]
[1725718154068,0.0495,54727.0,54721.0,0.002]
[1725718154271,0.19,54723.0,54721.0,0.001]
[1725718154565,0.19,54723.0,54716.0,0.001]
[1725718154566,0.091383,54717.0,54716.0,0.001]
[1725718154767,0.280383,54717.0,54716.0,0.001]
[1725718155064,1.33728,54717.0,54705.0,0.091403]
[1725718155272,0.19,54711.0,54703.0,0.19]
[1725718155462,0.091396,54710.0,54707.0,0.0914]
[1725718155662,0.089397,54709.0,54707.0,0.0914]
[1725718156655,0.091398,54708.0,54703.0,0.282407]
[1725718156861,0.19,54710.0,54703.0,0.282407]
[1725718157260,0.0914,54708.0,54703.0,0.282407]
[1725718157461,0.0914,54708.0,54705.0,0.001]
[1725718157971,0.0914,54708.0,54707.0,0.001]
[1725718158673,0.005,54708.0,54707.0,0.0924]
[1725718158974,0.005,54708.0,54707.0,0.0914]
[1725718159574,0.005,54708.0,54707.0,0.0924]
[1725718159777,0.096398,54708.0,54707.0,0.0924]
[1725718159960,0.096398,54708.0,54707.0,0.001]
[1725718160773,0.091398,54708.0,54707.0,0.001]
[1725718160965,0.095398,54708.0,54707.0,0.002]
[1725718161563,0.091405,54704.0,54693.0,0.091423]
[1725718161770,0.091405,54704.0,54680.0,0.07285029]
[1725718161771,0.19,54697.0,54690.0,0.091427]
[1725718162076,0.091427,54691.0,54690.0,0.091427]
[1725718162273,0.091432,54688.0,54686.0,0.091435]
[1725718162472,0.19,54693.0,54682.0,0.19]
[1725718162677,0.088432,54688.0,54686.0,0.091434]
[1725718163869,0.088432,54688.0,54682.0,0.19]
[1725718163870,0.19,54690.0,54682.0,0.091442]
[1725718164175,0.13963,54689.0,54682.0,0.19]
[1725718164478,0.13963,54689.0,54685.0,0.19]
[1725718164670,0.13463,54689.0,54686.0,0.091435]
[1725718165276,0.13463,54689.0,54685.0,0.19]
[1725718165277,0.091433,54687.0,54685.0,0.19]
[1725718165580,0.19,54686.0,54682.0,0.001]
[1725718165791,0.09144,54683.0,54679.0,0.19]
[1725718165972,0.0467,54682.0,54679.0,0.19]
[1725718166476,0.0457,54682.0,54679.0,0.281446]
[1725718166661,0.0457,54682.0,54679.0,0.19]
[1725718166866,0.0457,54682.0,54681.0,0.091444]
[1725718167666,0.091436,54686.0,54681.0,0.091444]
[1725718167975,0.090437,54685.0,54682.0,0.19]
[1725718168786,0.090437,54685.0,54682.0,0.281441]